bitfinex/quotes_ETHUSD_20230405
["timestamp","ask_amount","ask_price","bid_price","bid_amount"]
[1680736836771,1.13903377,1909.1,1909.0,2.406752]
[1680736838994,1.63756001,1909.1,1909.0,2.406752]
[1680736839867,1.13903377,1909.1,1909.0,2.406752]
[1680736842943,0.23,1909.1,1909.0,2.406752]
[1680736847538,1.13901894,1909.1,1909.0,2.406752]
[1680736847739,0.23,1909.1,1909.0,2.406752]
[1680736848145,1.13902032,1909.1,1909.0,2.406752]
[1680736848353,0.23,1909.1,1909.0,2.406752]
[1680736848716,1.13902061,1909.1,1909.0,2.406752]
[1680736848928,0.23,1909.1,1909.0,2.406752]
[1680736849237,1.13902064,1909.1,1909.0,2.406752]
[1680736849902,0.23,1909.1,1909.0,2.406752]
[1680736850439,1.13901806,1909.1,1909.0,2.406752]
[1680736850643,0.23,1909.1,1909.0,2.406752]
[1680736851938,1.139019,1909.1,1909.0,2.406752]
[1680736852322,0.23,1909.1,1909.0,2.406752]
[1680736853130,0.12852624,1909.2,1909.0,2.406752]
[1680736853442,1.71664621,1909.2,1909.0,2.406752]
[1680736853606,0.80763028,1909.2,1909.0,2.406752]
[1680736854413,0.12852624,1909.2,1909.0,2.406752]
[1680736854742,1.03752712,1909.2,1909.0,2.406752]
[1680736859583,1.73181508,1909.2,1909.0,2.406752]
[1680736859752,0.90900088,1909.1,1909.0,2.406752]
[1680736860348,0.90900088,1909.2,1909.0,2.406752]
[1680736860539,0.90900088,1909.1,1909.0,2.406752]
[1680736860852,0.8228142,1909.2,1909.0,2.406752]
[1680736861224,7.62273675,1909.3,1909.0,2.406752]
[1680736861419,1.81508788,1909.2,1909.0,2.406752]
[1680736861624,1.0528142,1909.2,1909.0,2.406752]
[1680736863252,0.54951294,1909.1,1909.0,2.406752]
[1680736865651,1.60232714,1909.2,1909.0,2.406752]
[1680736865832,0.54951294,1909.1,1909.0,2.406752]
[1680736874265,1.60232714,1909.2,1909.0,2.406752]
[1680736875460,0.77951294,1909.2,1909.0,2.406752]
[1680736875660,1.60232714,1909.2,1909.0,2.406752]
[1680736876631,0.77951294,1909.2,1909.0,2.406752]
[1680736877570,1.60232714,1909.2,1909.0,2.406752]
[1680736879180,0.54951294,1909.1,1909.0,2.406752]
[1680736879481,1.60232714,1909.1,1909.0,2.406752]
[1680736879683,7.5281036,1909.1,1909.0,2.406752]
[1680736880553,7.9881036,1909.1,1909.0,2.406752]
[1680736880761,8.89724266,1909.1,1909.0,2.406752]
[1680736880942,10.77252264,1909.1,1909.0,2.406752]
[1680736883553,10.4973188,1909.1,1909.0,2.406752]
[1680736884947,17.37537495,1909.1,1909.0,2.406752]
[1680736885143,16.27660135,1909.1,1909.0,2.406752]
[1680736885348,17.37537495,1909.1,1909.0,2.406752]
[1680736885547,16.27660135,1909.1,1909.0,2.406752]
[1680736892295,15.77660135,1909.1,1909.0,2.406752]
[1680736895720,15.40994135,1909.1,1909.0,2.406752]
[1680736896669,15.77660135,1909.1,1909.0,2.406752]
[1680736905108,15.77860135,1909.1,1909.0,2.406752]
[1680736905428,15.77660135,1909.1,1909.0,2.406752]
[1680736908416,10.80703882,1909.1,1909.0,2.406752]
[1680736908645,7.47870882,1909.1,1909.0,2.406752]
[1680736908857,8.02725296,1909.1,1909.0,2.406752]
[1680736909533,8.03325296,1909.1,1909.0,2.406752]
[1680736909834,8.03327425,1909.1,1909.0,2.406752]
[1680736911627,7.48470882,1909.1,1909.0,2.406752]
[1680736913450,7.66803882,1909.1,1909.0,2.406752]
[1680736921442,7.94324266,1909.1,1909.0,2.406752]
[1680736923225,8.91133914,1909.1,1909.0,2.406752]
[1680736923971,10.28042132,1909.1,1909.0,2.406752]
[1680736924337,8.91133914,1909.1,1909.0,2.406752]
[1680736925072,9.54830772,1909.1,1909.0,2.406752]
[1680736925379,10.64689712,1909.1,1909.0,2.406752]
[1680736928089,9.54830772,1909.1,1909.0,2.406752]
[1680736929687,8.99831772,1909.1,1909.0,2.406752]
[1680736935947,11.63260027,1909.1,1909.0,2.406752]
[1680736936195,14.77760027,1909.1,1909.0,2.406752]
[1680736938398,14.96093027,1909.1,1909.0,2.406752]
[1680736938761,14.77760027,1909.1,1909.0,2.406752]
[1680736939500,15.32759027,1909.1,1909.0,2.406752]
[1680736939703,14.41750809,1909.1,1909.0,2.406752]
[1680736939853,17.41750809,1909.1,1909.0,2.406752]
[1680736940054,16.72484609,1909.1,1909.0,2.406752]
[1680736944582,16.72484609,1909.1,1909.0,1.86120519]
[1680736947121,18.09840589,1909.1,1909.0,1.86120519]
[1680736947477,16.72484609,1909.1,1909.0,1.86120519]
[1680736947682,18.09838591,1909.1,1909.0,1.86120519]
[1680736947882,16.72484609,1909.1,1909.0,1.86120519]
[1680736949184,18.09828726,1909.1,1909.0,1.86120519]
[1680736950283,17.63928726,1909.1,1909.0,1.86120519]
[1680736953534,17.08929726,1909.1,1909.0,1.86120519]
[1680736953765,16.12120078,1909.1,1909.0,1.86120519]
[1680736954323,16.30453078,1909.1,1909.0,1.86120519]
[1680736955335,16.12120078,1909.1,1909.0,1.86120519]
[1680736955519,16.30453078,1909.1,1909.0,1.86120519]
[1680736956168,16.12120078,1909.1,1909.0,1.86120519]
[1680736958026,16.30453078,1909.1,1909.0,1.86120519]
[1680736959365,17.93578386,1909.1,1909.0,1.86120519]
[1680736973974,17.75245386,1909.1,1909.0,1.86120519]
[1680736974282,16.30453078,1909.1,1909.0,1.86120519]
[1680736979896,12.97620078,1909.1,1909.0,1.86120519]
[1680736980055,10.52524823,1909.1,1909.0,1.86120519]
[1680736981192,10.34191823,1909.1,1909.0,1.86120519]
[1680736981687,10.52524823,1909.1,1909.0,1.86120519]
[1680736982394,2.00812793,1909.1,1909.0,2.04732571]
[1680736982557,1.73333007,1909.1,1909.0,2.04732571]
[1680736982759,0.82419101,1909.1,1909.0,2.04732571]
[1680736982952,1.73338696,1909.1,1909.0,2.04732571]
[1680736983580,2.83237583,1909.1,1909.0,2.04732571]
[1680736983889,2.19145793,1909.1,1909.0,2.04732571]
[1680736984657,2.83220461,1909.1,1909.0,2.04732571]
[1680736984862,1.92306555,1909.1,1909.0,2.04732571]
[1680736985583,1.73321574,1909.1,1909.0,2.04732571]
[1680736986194,0.82407668,1909.1,1909.0,2.04732571]
[1680736988983,1.37321871,1909.1,1909.0,2.04732571]
[1680736989175,1.37321287,1909.1,1909.0,2.04732571]
[1680736989371,0.90913906,1909.1,1909.0,2.04732571]
[1680736989559,1.37321096,1909.1,1909.0,2.04732571]
[1680736989767,1.45827334,1909.1,1909.0,2.04732571]
[1680736989994,0.54913428,1909.1,1909.0,2.04732571]
[1680736990862,1.45827334,1909.1,1909.0,2.04732571]
[1680736991480,0.54913428,1909.1,1909.0,2.04732571]
[1680736993516,0.54913428,1909.1,1909.0,2.50732571]
[1680736993716,0.002,1909.3,1909.1,1.0]
[1680736993921,0.54913428,1909.5,1909.2,1.028]
[1680736994114,0.54913428,1909.5,1909.4,0.463]
[1680736994320,1.37321096,1909.5,1909.2,0.564]
[1680736994533,2.28209847,1909.5,1909.2,0.564]
[1680736994683,0.54913428,1909.5,1909.3,0.0564]
[1680736995017,1.48321097,1909.6,1909.3,0.0564]
[1680736995223,0.9089213,1909.5,1909.4,3.729]
[1680736995598,0.65913429,1909.6,1909.4,3.729]
[1680736996216,0.65913429,1909.6,1909.4,4.10844]
[1680736997021,0.11000001,1909.6,1909.4,4.10844]
[1680736997686,0.65913429,1909.6,1909.4,4.10844]
[1680736998688,0.11000001,1909.6,1909.4,4.10844]
[1680737001025,0.11000001,1909.6,1909.4,4.57244]
[1680737001201,0.11000001,1909.6,1909.5,0.457244]
[1680737001392,0.34000001,1909.6,1909.5,0.457244]
[1680737001921,0.11000001,1909.6,1909.5,0.921244]
[1680737002695,0.11000001,1909.6,1909.5,4.476244]
[1680737006194,0.11000001,1909.6,1909.5,4.012244]
[1680737009843,0.11000001,1909.6,1909.5,4.475244]
[1680737011244,0.11000001,1909.6,1909.5,4.012244]
[1680737015320,0.11000001,1909.6,1909.5,3.555]
[1680737031986,0.3991343,1909.8,1909.5,3.557]
[1680737032187,0.23,1909.7,1909.5,3.555]
[1680737033359,0.23,1909.8,1909.5,3.555]
[1680737034789,1.9628795,1909.8,1909.5,3.555]
[1680737034982,0.90880282,1909.7,1909.5,3.555]
[1680737038293,0.90880282,1909.7,1909.5,3.9114]
[1680737038796,0.90880282,1909.6,1909.5,3.9114]
[1680737039106,0.82407668,1909.7,1909.5,3.9174]
[1680737039484,0.82407668,1909.7,1909.5,3.9114]
[1680737039677,1.7328795,1909.7,1909.5,3.9114]
[1680737039873,1.92306555,1909.8,1909.6,0.39114]
[1680737040235,1.73284959,1909.7,1909.6,0.39114]
[1680737040393,2.83183846,1909.8,1909.6,0.39114]
[1680737040599,0.90877291,1909.7,1909.6,0.39114]
[1680737040784,0.82407668,1909.7,1909.6,0.39114]
[1680737040980,2.83183846,1909.8,1909.6,0.39114]
[1680737041187,0.90877291,1909.7,1909.6,0.39114]
[1680737041511,1.73284959,1909.8,1909.6,0.39114]
[1680737041721,0.90877291,1909.7,1909.6,0.39114]
[1680737041874,1.73284959,1909.8,1909.6,0.39114]
[1680737042078,1.45784595,1909.7,1909.6,0.39114]
[1680737042280,0.54907304,1909.7,1909.6,0.39114]
[1680737042681,0.82407668,1909.7,1909.6,0.39114]
[1680737043428,1.45787661,1909.7,1909.6,0.39114]
[1680737043634,2.28195329,1909.7,1909.6,0.39114]
[1680737043785,1.37318038,1909.7,1909.6,0.39114]
[1680737043977,1.45787661,1909.7,1909.6,0.39114]
[1680737044185,0.5491037,1909.7,1909.6,0.39114]
[1680737045122,1.45787661,1909.7,1909.6,0.87660904]
[1680737045883,0.5491037,1909.7,1909.6,0.87660904]
[1680737046419,0.90877291,1909.7,1909.6,0.87660904]
[1680737047399,0.5491037,1909.8,1909.6,0.87660904]
[1680737047594,0.5491037,1909.8,1909.7,0.0876609]
[1680737047801,1.45783395,1909.8,1909.7,0.0876609]
[1680737056016,1.45783395,1909.8,1909.7,0.5516609]
[1680737056208,1.45783395,1909.8,1909.7,4.1616609]
[1680737056407,1.45783395,1909.8,1909.7,4.1676609]
[1680737057227,1.45783395,1909.8,1909.7,3.616]
[1680737057433,1.45783395,1909.8,1909.7,3.61]
[1680737061429,0.90873025,1909.8,1909.7,3.61]
[1680737063241,0.65910371,1909.9,1909.7,3.61]
[1680737064540,0.65910371,1909.9,1909.7,4.074]
[1680737064742,0.65910371,1909.9,1909.7,4.08]
[1680737065145,0.65910371,1909.9,1909.7,3.616]
[1680737065343,0.65910371,1909.9,1909.7,3.61]
[1680737068826,6.60358038,1910.0,1909.7,3.61]
[1680737069026,0.85869953,1909.9,1909.7,3.61]
[1680737079584,1.68277621,1909.9,1909.7,3.61]
[1680737079736,0.82407668,1909.9,1909.7,3.61]
[1680737079936,7.70456925,1910.0,1909.7,3.61]
[1680737080139,7.70256925,1910.0,1909.7,3.61]
[1680737080435,0.82407668,1909.9,1909.7,3.61]
[1680737081384,0.82407668,1909.9,1909.7,3.9740469]
[1680737082592,0.54893128,1909.8,1909.7,3.9740469]
[1680737084373,0.54893128,1909.9,1909.7,4.4410469]
[1680737084585,0.54893128,1910.0,1909.8,0.464]
[1680737084889,0.54893128,1910.1,1909.8,0.464]
[1680737085182,0.54893128,1910.2,1909.8,1.00870469]
[1680737085387,0.54893128,1910.2,1910.1,0.464]
[1680737085588,0.82807668,1910.3,1910.1,0.464]
[1680737085589,0.54893128,1910.3,1910.1,0.464]
[1680737085892,0.54893128,1910.3,1910.2,0.464]
[1680737086760,0.54893128,1910.3,1910.0,0.48146453]
[1680737086947,0.54893128,1910.3,1910.0,3.79392179]
[1680737087284,0.54893128,1910.3,1910.0,3.79992179]
[1680737087585,1.37300796,1910.4,1910.0,3.79992179]
[1680737089112,2.28151305,1910.4,1910.0,3.79992179]
[1680737089587,0.54893128,1910.4,1910.0,3.79992179]
[1680737089787,1.45743618,1910.4,1910.1,0.37999218]
[1680737090143,1.45743618,1910.4,1910.2,3.767]
[1680737091093,0.002,1910.5,1910.3,1.461]
[1680737091246,0.82407668,1910.8,1910.4,0.464]
[1680737091247,0.54893128,1910.8,1910.4,0.464]
[1680737091448,0.54893128,1910.9,1910.4,4.221]
[1680737091655,1.45724879,1910.9,1910.4,4.221]
[1680737091855,0.23,1910.8,1910.4,4.221]
[1680737092594,0.23,1910.8,1910.4,4.744]
[1680737092798,0.23,1910.8,1910.4,4.28]
[1680737093656,0.23,1910.9,1910.4,4.28]
[1680737094769,0.23,1910.9,1910.4,4.30146004]
[1680737095358,1.13833193,1910.9,1910.4,4.30146004]
[1680737095601,0.23,1910.9,1910.5,0.430146]
[1680737097394,0.23,1910.9,1910.7,3.837]
[1680737100202,0.63600001,1911.0,1910.7,3.837]
[1680737100436,0.23,1910.9,1910.7,3.837]
[1680737101404,0.63000001,1911.0,1910.7,3.837]
[1680737101606,0.63000001,1911.0,1910.7,4.221]
[1680737110345,0.63000001,1911.0,1910.7,3.837]
[1680737110952,0.23,1910.9,1910.7,3.837]
[1680737111148,0.464,1910.8,1910.7,3.837]
[1680737111303,0.464,1910.8,1910.5,0.009]
[1680737111304,0.464,1910.7,1910.5,0.009]
[1680737111503,0.464,1910.7,1909.9,14.8284]
[1680737111504,0.464,1910.6,1909.9,14.8284]
[1680737111765,0.23,1910.5,1909.9,16.47168255]
[1680737112734,0.459,1910.3,1909.9,0.009]
[1680737112922,0.464,1910.4,1909.5,1.0]
[1680737112923,0.463,1910.2,1909.5,1.0]
[1680737113125,0.463,1910.2,1909.6,2.63428255]
[1680737113331,0.463,1910.2,1909.7,0.26342826]
[1680737114241,0.464,1910.3,1909.7,0.26342826]
[1680737114412,0.23,1910.2,1909.7,0.26342826]
[1680737114614,0.23,1910.2,1909.7,0.28489617]
[1680737119950,0.23,1910.2,1909.7,0.02146791]
[1680737120880,0.46,1910.2,1909.7,0.02146791]
[1680737121401,6.2965,1910.1,1909.7,0.02146791]
[1680737121943,6.7605,1910.1,1909.5,0.006]
[1680737122787,17.4811,1910.1,1909.5,0.006]
[1680737123087,1.74811,1910.0,1909.5,0.006]
[1680737124556,0.23,1909.9,1909.5,0.006]
[1680737125024,1.367791,1910.0,1909.4,3.006]
[1680737125644,1.367791,1910.0,1909.4,3.02747128]
[1680737125843,1.367791,1910.0,1909.4,4.80823841]
[1680737126022,1.367791,1910.0,1909.4,3.02747128]
[1680737126229,1.827791,1910.0,1909.4,3.02747128]
[1680737126715,1.827791,1910.0,1909.4,3.02147128]
[1680737126916,1.827791,1910.0,1909.4,3.02747128]
[1680737127224,0.23,1909.9,1909.4,3.02747128]
[1680737127422,0.23,1909.9,1909.4,4.80823841]
[1680737131223,0.23,1910.0,1909.4,4.80823841]
[1680737132833,0.23,1910.0,1909.4,5.27223841]
[1680737133034,0.23,1910.0,1909.4,5.27523841]
[1680737133235,16.7871,1910.1,1909.4,7.90952096]
[1680737133431,65.1271,1910.1,1909.5,0.64791233]
[1680737133738,65.1271,1910.1,1909.5,0.65391233]
[1680737144177,65.1271,1910.1,1909.5,3.28819488]
[1680737144348,65.1271,1910.1,1909.6,0.464]
[1680737144873,65.1271,1910.1,1909.7,0.46]
[1680737144874,48.34,1910.1,1909.7,0.46]
[1680737146193,48.34,1910.1,1909.7,0.48146791]
[1680737147052,48.34,1910.1,1909.8,2.63428255]
[1680737147388,48.34,1910.1,1909.8,2.64028255]
[1680737148090,48.342,1910.1,1909.8,2.63628255]
[1680737148313,48.34,1910.1,1909.8,2.64028255]
[1680737148524,48.34,1910.1,1909.9,0.26402826]
[1680737161358,48.34,1910.1,1909.8,2.64028255]
[1680737165746,48.19,1910.1,1909.8,2.64028255]
[1680737166968,48.196,1910.1,1909.8,2.63428255]
[1680737167172,48.19,1910.1,1909.8,2.64028255]
[1680737171577,48.19,1910.1,1909.8,2.64028255]
[1680737178715,48.19,1910.1,1909.8,0.006]
[1680737178916,4.819,1910.0,1909.6,0.006]
[1680737179116,53.159,1910.0,1909.5,0.006]
[1680737179320,48.34,1910.0,1909.5,2.64028255]
[1680737179615,48.34,1910.0,1909.6,3.0]
[1680737179852,48.34,1910.0,1909.6,3.006]
[1680737185640,48.344,1910.0,1909.6,3.002]
[1680737185844,48.34,1910.0,1909.6,3.006]
[1680737193667,48.346,1910.0,1909.6,3.0]
[1680737194053,48.34,1910.0,1909.6,3.006]
[1680737200031,52.21759543,1910.0,1909.6,3.006]
[1680737200278,52.21759543,1910.0,1909.6,0.006]
[1680737200446,6.1219,1909.9,1909.5,0.006]
[1680737200748,54.4619,1909.9,1909.5,0.006]
[1680737204580,54.4619,1909.9,1909.5,0.30874713]
[1680737205976,54.4659,1909.9,1909.5,0.30474713]
[1680737206288,54.4619,1909.9,1909.5,0.30874713]
[1680737220231,54.45559926,1909.9,1909.5,0.51000116]
[1680737221634,54.45559926,1909.9,1909.5,0.20725403]
[1680737223032,54.45559926,1909.9,1909.5,2.80725403]
[1680737231241,54.45959926,1909.9,1909.5,2.80325403]
[1680737231447,54.45559926,1909.9,1909.5,2.80725403]
[1680737237319,54.45559926,1909.9,1909.5,3.39042656]
[1680737239251,54.46159926,1909.9,1909.5,3.38442656]
[1680737239460,54.45559926,1909.9,1909.5,3.39042656]
[1680737241942,54.45559926,1909.9,1909.5,3.38842656]
[1680737242260,54.45559926,1909.9,1909.5,3.39042656]
[1680737242641,54.45559926,1909.9,1909.5,2.80725403]
[1680737242841,54.91959926,1909.9,1909.5,2.80725403]
[1680737243945,60.43559926,1909.9,1909.5,2.80725403]
[1680737244163,0.464,1909.6,1909.5,2.80125403]
[1680737244337,45.53874597,1909.5,1909.1,0.003]
[1680737244545,5.0138746,1909.4,1908.6,10.0863]
[1680737244780,5.0138746,1909.4,1908.8,2.63428255]
[1680737244966,53.3538746,1909.4,1908.8,2.64028255]
[1680737247081,52.8938746,1909.4,1908.8,2.64028255]
[1680737249791,52.8938746,1909.4,1908.8,0.006]
[1680737249949,5.27718409,1909.3,1908.8,3.0]
[1680737250150,5.27718409,1909.3,1908.8,3.006]
[1680737250344,53.61718409,1909.3,1908.8,3.006]
[1680737251366,0.23,1909.2,1908.8,0.006]
[1680737251687,5.97118409,1909.2,1908.7,2.6]
[1680737251983,5.97118409,1909.2,1908.6,0.006]
[1680737251984,54.31118409,1909.2,1908.6,0.006]
[1680737252175,10.1717,1909.1,1908.4,0.006]
[1680737252349,1.01717,1909.0,1908.4,2.64028255]
[1680737252686,49.35717,1909.0,1908.4,2.64028255]
[1680737252992,49.35717,1909.0,1908.5,3.0]
[1680737253160,49.35717,1909.0,1908.5,3.006]
[1680737255406,49.36317,1909.0,1908.5,3.0]
[1680737255597,49.35717,1909.0,1908.5,3.006]
[1680737256493,49.35717,1909.0,1908.6,0.49869488]
[1680737256695,4.935717,1908.9,1908.6,0.49869488]
[1680737256869,49.35917,1909.0,1908.6,0.50469488]
[1680737257070,49.35717,1909.0,1908.6,0.50469488]
[1680737257996,49.35717,1909.0,1908.6,0.49869488]
[1680737258627,49.35717,1909.0,1908.4,0.47]
[1680737258818,49.35717,1909.0,1908.4,0.464]
[1680737259509,3.42380005,1908.9,1908.4,0.464]
[1680737259812,49.35917,1909.0,1908.4,0.47]
[1680737260016,49.35717,1909.0,1908.4,0.464]
[1680737260726,49.35917,1909.0,1908.4,0.464]
[1680737261023,49.35717,1909.0,1908.4,0.464]
[1680737261917,49.35717,1909.0,1908.3,0.47]
[1680737262086,49.35717,1909.0,1908.3,3.45158255]
[1680737262416,49.35717,1909.0,1908.4,3.0]
[1680737262617,49.35717,1909.0,1908.4,3.006]
[1680737272630,49.35717,1909.0,1908.5,0.73956558]
[1680737272827,49.35717,1909.0,1908.5,0.74556558]
[1680737273032,4.935717,1908.9,1908.5,0.74556558]
[1680737274939,4.935717,1908.9,1908.5,0.73956558]
[1680737275727,10.660917,1908.9,1908.3,2.64028255]
[1680737279541,10.666917,1908.9,1908.4,0.38229261]
[1680737279747,10.660917,1908.9,1908.4,0.38229261]
[1680737279924,1.0660917,1908.8,1908.4,0.38229261]
[1680737280600,1.0660917,1908.8,1908.3,2.64028255]
[1680737283551,1.0660917,1908.8,1908.4,0.39192642]
[1680737284755,1.0660917,1908.8,1908.3,2.64028255]
[1680737286435,10.662917,1908.9,1908.3,3.10428255]
[1680737286654,5.7252,1908.9,1908.3,3.10428255]
[1680737287555,5.7252,1908.9,1908.4,0.39192642]
[1680737288663,5.7252,1908.9,1908.3,3.10428255]
[1680737291587,5.7252,1908.9,1908.4,0.3780898]
[1680737291757,6.399637,1908.9,1908.4,0.3780898]
[1680737301401,5.7252,1908.9,1908.4,0.3780898]
[1680737301898,5.7312,1908.9,1908.4,0.3280898]
[1680737302608,5.7312,1908.9,1908.5,0.06090874]
[1680737303598,5.7312,1908.9,1908.6,0.67267846]
[1680737304732,5.7312,1908.9,1908.3,3.09828255]
[1680737304927,5.7312,1908.9,1908.4,0.30982826]
[1680737305315,5.7312,1908.9,1908.5,2.63428255]
[1680737305729,5.7312,1908.9,1908.5,3.30739111]
[1680737310641,5.7312,1908.9,1908.6,0.05977712]
[1680737310808,5.7312,1908.9,1908.6,2.69405967]
[1680737315646,5.7312,1908.9,1908.7,0.67224841]
[1680737318034,0.006,1908.9,1908.7,4.10118406]
[1680737318268,0.006,1909.2,1908.7,4.10118406]
[1680737319050,0.006,1909.2,1908.7,3.77053096]
[1680737325210,48.346,1909.2,1908.7,3.77053096]
[1680737325708,48.346,1909.2,1908.8,0.05751424]
[1680737326376,48.346,1909.2,1908.8,0.51851424]
[1680737326593,48.346,1909.2,1908.8,3.15279679]
[1680737326899,48.346,1909.2,1908.8,3.46807647]
[1680737328003,48.346,1909.2,1908.9,2.63428255]
[1680737328210,48.346,1909.2,1908.9,3.09828255]
[1680737329807,48.346,1909.2,1909.0,0.463]
[1680737330121,48.346,1909.2,1909.0,3.09728255]
[1680737330714,48.346,1909.2,1909.1,0.67052864]
[1680737340651,48.346,1909.2,1909.1,0.72464944]
[1680737349310,53.62318409,1909.2,1909.1,0.72464944]
[1680737350716,53.62318409,1909.2,1908.6,8.10205129]
[1680737350891,63.91798409,1909.2,1908.7,2.63428255]
[1680737351616,63.91798409,1909.2,1908.8,0.72933264]
[1680737351781,64.37698409,1909.2,1908.8,0.72933264]
[1680737351976,5.27718409,1909.1,1908.8,0.72933264]
[1680737352218,53.62318409,1909.1,1908.8,0.72933264]
[1680737352582,53.62318409,1909.1,1908.7,2.63428255]
[1680737353827,53.62318409,1909.1,1908.6,3.52245129]
[1680737354033,53.62318409,1909.1,1908.6,3.15373384]
[1680737354217,5.27718409,1909.0,1908.6,3.15373384]
[1680737354424,53.62318409,1909.0,1908.6,3.15373384]
[1680737354728,53.62318409,1909.0,1908.7,0.49368505]
[1680737367853,48.346,1909.0,1908.7,0.49368505]
[1680737368768,48.346,1909.0,1908.7,3.1279676]
[1680737371464,0.006,1909.0,1908.7,3.1279676]
[1680737373332,0.006,1909.0,1908.8,3.09728255]
[1680737373668,2.18749609,1909.5,1908.8,3.09728255]
[1680737373669,0.006,1909.1,1908.9,0.46]
[1680737373855,0.006,1909.2,1908.9,3.09428255]
[1680737377671,0.006,1909.2,1909.0,0.39959289]
[1680737382394,5.9122,1909.3,1909.0,0.39959289]
[1680737384605,6.50362,1909.3,1909.0,0.39959289]
[1680737393485,5.9122,1909.3,1909.0,0.39959289]
[1680737398631,5.9122,1909.3,1909.0,3.03387544]
[1680737409211,0.006,1909.3,1909.1,2.63428255]
[1680737409417,0.006,1909.4,1909.1,2.63428255]
[1680737409610,0.006,1909.4,1909.2,0.26342826]
[1680737409811,0.006,1909.4,1909.2,2.89771081]
[1680737412253,0.006,1909.4,1909.2,2.63428255]
[1680737414434,0.006,1909.4,1909.1,2.63428255]
[1680737414812,0.006,1909.4,1909.0,0.40259289]
[1680737415044,0.006,1909.4,1909.0,3.39959289]
[1680737415249,0.67833313,1909.4,1909.0,0.39959289]
[1680737416515,1.69126441,1909.4,1909.0,0.39959289]
[1680737416829,0.464,1909.2,1909.0,0.39959289]
[1680737417531,6.3597,1909.2,1909.0,0.39959289]
[1680737417848,6.3657,1909.2,1909.0,0.39959289]
[1680737418148,0.63657,1909.1,1909.0,0.39959289]
[1680737418326,0.64257,1909.1,1909.0,0.39959289]
[1680737420151,0.006,1909.1,1909.0,0.39959289]
[1680737422151,0.006,1909.1,1908.7,0.02147915]
[1680737422349,5.9017,1909.2,1908.8,2.63428255]
[1680737423052,5.9017,1909.2,1908.8,3.12442498]
[1680737434093,5.9017,1909.2,1908.8,3.58842498]
[1680737434269,5.9017,1909.2,1908.9,0.3588425]
[1680737434580,5.9017,1909.2,1908.9,2.99312505]
[1680737435952,0.006,1909.2,1908.9,2.99312505]
[1680737436557,0.006,1909.3,1908.9,2.99312505]
[1680737437270,0.006,1909.4,1908.9,2.99312505]
[1680737437500,0.006,1909.4,1909.0,0.29931251]
[1680737437871,0.006,1909.4,1909.0,0.80997908]
[1680737439906,0.006,1909.4,1909.0,3.44426163]
[1680737440486,0.002,1909.4,1909.0,3.44426163]
[1680737440685,0.006,1909.4,1909.0,3.44426163]
[1680737440856,0.006,1909.4,1909.1,0.34442616]
[1680737441051,0.006,1909.4,1909.0,3.44426163]
[1680737441781,0.006,1909.4,1909.1,0.50988612]
[1680737443293,17.52543128,1909.5,1909.1,0.50988612]
[1680737445800,16.9765,1909.5,1909.1,0.50988612]
[1680737446111,18.8116508,1909.5,1909.1,0.50988612]
[1680737446303,19.36058208,1909.5,1909.1,0.50988612]
[1680737447120,18.8116508,1909.5,1909.1,0.50988612]
[1680737450117,19.36058208,1909.5,1909.1,0.50988612]
[1680737450306,18.8116508,1909.5,1909.1,0.50988612]
[1680737453840,18.8116508,1909.5,1909.1,3.14416867]
[1680737454054,16.9765,1909.5,1909.1,3.14416867]
[1680737454695,6.324,1909.5,1909.2,2.65575609]
[1680737454895,6.324,1909.5,1909.2,3.11975609]
[1680737454896,0.006,1909.5,1909.2,3.11975609]
[1680737455130,16.1296,1909.7,1909.2,3.11975609]
[1680737458333,16.67853128,1909.7,1909.2,3.11975609]
[1680737459197,16.1296,1909.7,1909.2,3.11975609]
[1680737459838,16.1296,1909.7,1909.3,0.51216191]
[1680737460056,16.1296,1909.7,1909.3,3.14644446]
[1680737460336,16.1296,1909.7,1909.3,3.50963626]
[1680737460508,16.1296,1909.7,1909.3,3.14644446]
[1680737476920,16.1296,1909.7,1909.3,2.63428255]
[1680737479257,16.67853128,1909.7,1909.3,2.63428255]
[1680737479460,0.23,1909.6,1909.1,0.003]
[1680737479638,0.236,1909.6,1909.0,5.17916657]
[1680737479952,1.97325313,1909.6,1909.0,3.14794912]
[1680737480252,1.97325313,1909.6,1909.0,3.14494912]
[1680737480986,2.43325313,1909.6,1909.1,0.36692736]
[1680737483734,1.97325313,1909.6,1909.1,0.36692736]
[1680737483931,0.19732531,1909.5,1909.1,0.36692736]
[1680737484133,0.23,1909.4,1909.1,0.36692736]
[1680737484972,0.19732531,1909.5,1909.1,0.36692736]
[1680737485144,1.74325313,1909.6,1909.1,0.36692736]
[1680737493180,2.29218441,1909.6,1909.1,0.36692736]
[1680737493885,0.32580759,1909.5,1909.0,0.97466657]
[1680737494186,0.32580759,1909.5,1909.1,0.09746666]
[1680737494960,0.32580759,1909.5,1909.1,3.19274921]
[1680737496581,0.33180759,1909.5,1909.1,3.19274921]
[1680737501096,0.33180759,1909.5,1909.1,0.09746666]
[1680737501400,0.32580759,1909.5,1909.0,3.51066657]
[1680737501594,0.32580759,1909.5,1909.0,6.14494912]
[1680737501781,0.33180759,1909.5,1909.0,6.14794912]
[1680737504978,0.32580759,1909.5,1909.0,3.51366657]
[1680737505191,0.32580759,1909.5,1909.0,0.51066657]
[1680737505391,0.41388148,1909.5,1909.0,0.51066657]
[1680737506102,6.22108148,1909.5,1909.0,0.51066657]
[1680737506268,6.22708148,1909.5,1909.0,0.51066657]
[1680737525420,6.13900759,1909.5,1909.0,0.51066657]
[1680737530100,6.13900759,1909.5,1909.1,2.63428255]
[1680737539001,6.13900759,1909.5,1909.0,0.97766657]
[1680737539332,6.13900759,1909.5,1909.0,3.60894912]
[1680737540626,6.13900759,1909.5,1909.0,3.14494912]
[1680737541297,6.80800148,1909.5,1909.0,3.14494912]
[1680737544364,6.13900759,1909.5,1909.0,3.14494912]
[1680737553741,6.26745045,1909.5,1909.0,3.14494912]
[1680737555133,6.26745045,1909.5,1909.0,0.51066657]
[1680737555443,7.27938173,1909.5,1909.0,0.51066657]